[Event "Championnat d'Europe Rapide"]
[Date "2024.12.07"]
[White "Muter, Donny"]
[Black "Dragnev, Valentin"]
[WhiteElo "2206"]
[BlackElo "2563"]
[Round "6.49"]
[Result "1/2-1/2"]
[TimeControl "900+10"]

1. b3 {[%emt 00:00:03] [%clk 00:15:18]} Nf6 {[%emt 00:00:16] [%clk 00:15:04]} 2.
Bb2 {[%emt 00:00:02] [%clk 00:15:26]} g6 {[%emt 00:00:10] [%clk 00:15:05]} 3.
Nf3 {[%emt 00:00:12] [%clk 00:15:24]} Bg7 {[%emt 00:00:24] [%clk 00:14:50]} 4.
e3 {[%emt 00:00:02] [%clk 00:15:32]} O-O {[%emt 00:00:03] [%clk 00:14:57]} 5.
Be2 {[%emt 00:00:13]} c5 {[%clk 00:14:57]} 6. O-O {[%emt 00:00:03] [%clk
00:15:46]} b6 {[%emt 00:00:22] [%clk 00:14:46]} 7. d4 {[%emt 00:00:04] [%clk
00:15:51]} Bb7 {[%emt 00:00:12] [%clk 00:14:44]} 8. c4 {[%emt 00:00:56] [%clk
00:15:05]} e6 {[%emt 00:00:08] [%clk 00:14:46]} 9. Nc3 {[%emt 00:01:24] [%clk
00:13:51]} d6 {[%emt 00:00:37] [%clk 00:14:19]} 10. Qc2 {[%emt 00:00:42] [%clk
00:13:18]} a6 {[%emt 00:00:48] [%clk 00:13:42]} 11. Rad1 {[%emt 00:00:38] [%clk
00:12:50]} Qe7 {[%emt 00:01:00] [%clk 00:12:52]} 12. Rd2 {[%emt 00:03:42] [%clk
00:09:18]} Nbd7 {[%emt 00:00:18] [%clk 00:12:43]} 13. Rfd1 {[%emt 00:00:27]
[%clk 00:09:01]} cxd4 {[%emt 00:00:18] [%clk 00:12:36]} 14. Rxd4 {[%emt
00:01:05] [%clk 00:08:06]} d5 {[%emt 00:03:19] [%clk 00:09:27]} 15. cxd5 {[%emt
00:01:07] [%clk 00:07:09]} exd5 {[%emt 00:00:02] [%clk 00:09:36]} 16. R4d2
{[%emt 00:00:36] [%clk 00:06:42]} Nc5 {[%emt 00:00:23] [%clk 00:09:23]} 17. Qb1
{[%emt 00:00:12] [%clk 00:06:40]} Rfe8 {[%emt 00:01:14] [%clk 00:08:19]} 18. Bf1
{[%emt 00:02:29] [%clk 00:04:21]} b5 {[%emt 00:00:30] [%clk 00:08:00]} 19. Rc2
{[%emt 00:01:16] [%clk 00:03:15]} Nce4 {[%emt 00:03:46] [%clk 00:04:23]} 20.
Nxe4 {[%emt 00:00:21] [%clk 00:03:04]} dxe4 {[%emt 00:00:05] [%clk 00:04:28]}
21. Ne5 {[%emt 00:00:45] [%clk 00:02:29]} Rac8 {[%emt 00:00:18] [%clk 00:04:20]}
22. Rcd2 {[%emt 00:01:03] [%clk 00:01:36]} Rc7 {[%emt 00:00:21] [%clk 00:04:09]}
23. a4 {[%emt 00:00:25] [%clk 00:01:21]} bxa4 {[%emt 00:02:30] [%clk 00:01:49]}
24. bxa4 {[%emt 00:00:27] [%clk 00:01:04]} Rec8 {[%emt 00:00:05] [%clk
00:01:55]} 25. h3 {[%emt 00:00:12] [%clk 00:01:01]} h5 {[%emt 00:00:36] [%clk
00:01:28]} 26. Qa2 {[%emt 00:00:53] [%clk 00:00:19]} Kh7 {[%emt 00:00:45] [%clk
00:00:54]} 27. Bc4 {[%emt 00:00:01] [%clk 00:00:27]} Nd5 {[%emt 00:00:44] [%clk
00:00:20]} 28. Bxd5 {[%emt 00:00:12] [%clk 00:00:25]} Bxe5 {[%emt 00:00:04]
[%clk 00:00:27]} 29. Bxe5 {[%emt 00:00:04] [%clk 00:00:30]} Qxe5 {[%emt
00:00:03] [%clk 00:00:35]} 30. Bxf7 {[%emt 00:00:01] [%clk 00:00:38]} Rc1 {[%emt
00:00:21] [%clk 00:00:24]} 31. Qe6 {[%emt 00:00:23] [%clk 00:00:25]} Qxe6 {[%emt
00:00:22] [%clk 00:00:12]} 32. Bxe6 {[%clk 00:00:34]} R8c7 {[%emt 00:00:10]
[%clk 00:00:12]} 33. Kh2 {[%emt 00:00:26] [%clk 00:00:18]} Kh6 {[%emt 00:00:14]}
34. Rxc1 {[%emt 00:00:02] [%clk 00:00:21]} Rxc1 {[%emt 00:00:01] [%clk
00:00:23]} 35. Rd6 {[%clk 00:00:30]} a5 {[%emt 00:00:08] [%clk 00:00:25]} 36.
Bf7 {[%emt 00:00:12] [%clk 00:00:27]} Rc6 {[%emt 00:00:03] [%clk 00:00:32]} 37.
Rxc6 {[%emt 00:00:02] [%clk 00:00:35]} Bxc6 {[%emt 00:00:01] [%clk 00:00:41]}
38. Bb3 {[%emt 00:00:01] [%clk 00:00:44]} g5 {[%emt 00:00:29] [%clk 00:00:22]}
39. Kg1 {[%emt 00:00:04]} Kg6 {[%emt 00:00:03] [%clk 00:00:27]} 40. Kf1 {[%emt
00:00:06] [%clk 00:00:56]} Kf6 {[%clk 00:00:37]} 41. Ke2 {[%emt 00:00:05] [%clk
00:01:01]} Ke5 {[%emt 00:00:01] [%clk 00:00:46]} 42. Kd2 {[%emt 00:00:33] [%clk
00:00:39]} Kd6 {[%clk 00:00:55]} 43. Kc3 {[%emt 00:00:02] [%clk 00:00:47]} Kc5
{[%emt 00:00:01] [%clk 00:01:04]} 44. Bd1 {[%clk 00:00:56]} h4 {[%emt 00:00:04]
[%clk 00:01:11]} 45. Bc2 {[%emt 00:00:21] [%clk 00:00:46]} Bb7 {[%emt 00:00:14]
[%clk 00:01:06]} 46. Bd1 {[%emt 00:00:28] [%clk 00:00:29]} Bc6 {[%emt 00:00:01]
[%clk 00:01:15]} 47. Bc2 {[%emt 00:00:19] [%clk 00:00:19]} Bb7 {[%emt 00:00:01]
[%clk 00:01:23]} 1/2-1/2

[Site "Europe Echecs"]

[Event "Championnat d'Europe Rapide"]
[Date "2024.12.07"]
[White "Sivan, Yaacov"]
[Black "Schneider, Ilja"]
[WhiteElo "2273"]
[BlackElo "2414"]
[Round "6.50"]
[Result "0-1"]
[TimeControl "900+10"]

1. e4 {[%emt 00:02:10] [%clk 00:15:17]} e5 {[%emt 00:00:01] [%clk 00:15:19]} 2.
Nf3 {[%emt 00:00:04] [%clk 00:15:23]} Nc6 {[%emt 00:00:02] [%clk 00:15:28]} 3.
Bb5 {[%emt 00:00:06] [%clk 00:15:26]} a6 {[%clk 00:15:37]} 4. Bxc6 {[%emt
00:00:02] [%clk 00:15:34]} dxc6 {[%clk 00:15:46]} 5. O-O {[%emt 00:00:03] [%clk
00:15:41]} Bg4 {[%emt 00:00:02] [%clk 00:15:54]} 6. h3 {[%emt 00:00:03] [%clk
00:15:48]} Bh5 {[%emt 00:00:04] [%clk 00:16:00]} 7. d3 {[%emt 00:00:14] [%clk
00:15:44]} f6 {[%emt 00:00:20] [%clk 00:15:50]} 8. Nbd2 {[%emt 00:00:29] [%clk
00:15:25]} Bd6 {[%emt 00:00:25] [%clk 00:15:35]} 9. Re1 {[%emt 00:00:06] [%clk
00:15:30]} Ne7 {[%emt 00:00:12] [%clk 00:15:32]} 10. Nf1 {[%emt 00:00:03] [%clk
00:15:37]} O-O {[%emt 00:00:56] [%clk 00:14:46]} 11. Ng3 {[%emt 00:00:19] [%clk
00:15:28]} Bf7 {[%emt 00:00:02] [%clk 00:14:54]} 12. Nh4 {[%emt 00:00:31] [%clk
00:15:07]} Re8 {[%emt 00:00:47] [%clk 00:14:17]} 13. Nhf5 {[%emt 00:00:48] [%clk
00:14:29]} Nxf5 {[%emt 00:00:02] [%clk 00:14:25]} 14. Nxf5 {[%emt 00:00:45]
[%clk 00:13:54]} Bf8 {[%emt 00:00:08] [%clk 00:14:28]} 15. Qf3 {[%emt 00:00:51]
[%clk 00:13:12]} c5 {[%emt 00:00:33] [%clk 00:14:06]} 16. b3 {[%emt 00:00:21]
[%clk 00:13:01]} Be6 {[%emt 00:00:46] [%clk 00:13:29]} 17. Bb2 {[%emt 00:00:30]
[%clk 00:12:41]} Qd7 {[%emt 00:00:20] [%clk 00:13:19]} 18. Rad1 {[%emt 00:00:09]
[%clk 00:12:42]} a5 {[%emt 00:00:15] [%clk 00:13:15]} 19. a4 {[%emt 00:00:44]
[%clk 00:12:08]} b5 {[%emt 00:00:42] [%clk 00:12:42]} 20. axb5 {[%emt 00:03:28]
[%clk 00:08:51]} Qxb5 {[%emt 00:00:14] [%clk 00:12:38]} 21. Bc3 {[%emt 00:00:16]
[%clk 00:08:44]} a4 {[%emt 00:00:02] [%clk 00:12:46]} 22. bxa4 {[%emt 00:00:16]
[%clk 00:08:38]} Qxa4 {[%emt 00:00:36] [%clk 00:12:20]} 23. Ne3 {[%emt 00:00:23]
[%clk 00:08:25]} Qa3 {[%emt 00:03:56] [%clk 00:08:34]} 24. Ba1 {[%emt 00:00:03]
[%clk 00:08:32]} Red8 {[%emt 00:00:27] [%clk 00:08:17]} 25. Nd5 {[%emt 00:03:24]
[%clk 00:05:18]} Bxd5 {[%emt 00:02:42] [%clk 00:05:45]} 26. exd5 {[%emt
00:00:02] [%clk 00:05:26]} Qa4 {[%emt 00:01:02] [%clk 00:04:53]} 27. c4 {[%emt
00:00:10] [%clk 00:05:26]} c6 {[%emt 00:00:55] [%clk 00:04:09]} 28. dxc6 {[%emt
00:00:32] [%clk 00:05:03]} Rac8 {[%emt 00:00:01] [%clk 00:04:18]} 29. Qg4 {[%emt
00:01:10] [%clk 00:04:03]} Rxc6 {[%emt 00:00:26] [%clk 00:04:03]} 30. f4 {[%emt
00:00:10] [%clk 00:04:02]} exf4 {[%emt 00:00:48] [%clk 00:03:25]} 31. Qxf4
{[%emt 00:00:10] [%clk 00:04:02]} Rcd6 {[%emt 00:00:03] [%clk 00:03:33]} 32. Qf3
{[%emt 00:00:45] [%clk 00:03:25]} Qc2 {[%emt 00:00:26] [%clk 00:03:18]} 33. Re3
{[%emt 00:00:40] [%clk 00:02:56]} Ra6 {[%emt 00:00:25] [%clk 00:03:03]} 34. Qe2
{[%emt 00:00:37] [%clk 00:02:28]} Ra2 {[%emt 00:00:30] [%clk 00:02:43]} 35. Qxc2
{[%emt 00:01:26] [%clk 00:01:12]} Rxc2 {[%emt 00:00:02] [%clk 00:02:52]} 36.
Ree1 {[%clk 00:01:21]} Bd6 {[%emt 00:00:42] [%clk 00:02:20]} 37. Kf1 {[%emt
00:00:12] [%clk 00:01:18]} Bg3 {[%emt 00:00:16] [%clk 00:02:15]} 38. Re3 {[%emt
00:00:18] [%clk 00:01:10]} Bf4 {[%emt 00:00:14] [%clk 00:02:10]} 39. Re4 {[%emt
00:00:14] [%clk 00:01:07]} Bc1 {[%emt 00:00:16] [%clk 00:02:03]} 40. Ree1 {[%emt
00:00:39] [%clk 00:00:39]} Bd2 {[%emt 00:00:10] [%clk 00:02:04]} 41. Re2 {[%emt
00:00:20] [%clk 00:00:28]} Rxd3 {[%clk 00:02:13]} 42. Rb1 {[%emt 00:00:04] [%clk
00:00:34]} Rc1+ {[%emt 00:00:18] [%clk 00:02:05]} 43. Rxc1 {[%emt 00:00:03]
[%clk 00:00:41]} Bxc1 {[%emt 00:00:02] [%clk 00:02:14]} 44. Re8+ {[%emt
00:00:20] [%clk 00:00:30]} Kf7 {[%clk 00:02:23]} 45. Rc8 {[%clk 00:00:39]} Ra3
{[%emt 00:00:04] [%clk 00:02:30]} 46. Bxf6 {[%emt 00:00:28] [%clk 00:00:20]}
gxf6 {[%emt 00:00:09] [%clk 00:02:32]} 47. Rxc5 {[%emt 00:00:01] [%clk
00:00:28]} Ra2 {[%clk 00:02:41]} 48. Rc7+ {[%emt 00:00:06] [%clk 00:00:32]} Kg6
{[%clk 00:02:50]} 49. g4 {[%emt 00:00:12] [%clk 00:00:30]} Rh2 {[%emt 00:00:09]
[%clk 00:02:51]} 0-1

[Site "Europe Echecs"]

[Event "Championnat d'Europe Rapide"]
[Date "2024.12.07"]
[White "Alienkin, Aleksander"]
[Black "Sramek, Vojtech"]
[WhiteElo "2337"]
[BlackElo "2259"]
[Round "6.51"]
[Result "1-0"]
[TimeControl "900+10"]

1. d4 {[%emt 00:00:59] [%clk 00:14:21]} Nf6 {[%emt 00:00:06] [%clk 00:15:14]} 2.
Nc3 {[%emt 00:00:10] [%clk 00:14:22]} d5 {[%emt 00:00:11] [%clk 00:15:13]} 3.
Bg5 {[%emt 00:00:02] [%clk 00:14:29]} Bf5 {[%emt 00:01:07] [%clk 00:14:16]} 4.
Bxf6 {[%emt 00:00:03] [%clk 00:14:36]} gxf6 {[%emt 00:00:28] [%clk 00:13:58]} 5.
e3 {[%emt 00:00:10] [%clk 00:14:36]} c6 {[%emt 00:00:15] [%clk 00:13:53]} 6. Bd3
{[%emt 00:00:05] [%clk 00:14:41]} Bg6 {[%emt 00:00:18] [%clk 00:13:45]} 7. Nge2
{[%emt 00:00:18] [%clk 00:14:33]} e5 {[%emt 00:00:12] [%clk 00:13:43]} 8. Ng3
{[%emt 00:01:09] [%clk 00:13:33]} Qd7 {[%emt 00:01:34] [%clk 00:12:20]} 9. f4
{[%emt 00:01:24] [%clk 00:12:19]} Bxd3 {[%emt 00:00:41] [%clk 00:11:49]} 10.
cxd3 {[%emt 00:01:02] [%clk 00:11:27]} exd4 {[%emt 00:01:17] [%clk 00:10:42]}
11. exd4 {[%emt 00:00:03] [%clk 00:11:33]} Na6 {[%emt 00:00:15] [%clk 00:10:38]}
12. O-O {[%emt 00:01:24] [%clk 00:10:18]} O-O-O {[%emt 00:00:08] [%clk
00:10:40]} 13. a3 {[%emt 00:00:33] [%clk 00:09:56]} Nc7 {[%emt 00:00:36] [%clk
00:10:14]} 14. Qh5 {[%emt 00:00:30] [%clk 00:09:35]} Ne6 {[%emt 00:00:57] [%clk
00:09:28]} 15. Nce2 {[%emt 00:01:09] [%clk 00:08:35]} h6 {[%emt 00:02:00] [%clk
00:07:39]} 16. Nf5 {[%emt 00:00:22] [%clk 00:08:23]} Rg8 {[%emt 00:01:04] [%clk
00:06:45]} 17. Neg3 {[%emt 00:00:24] [%clk 00:08:09]} Bd6 {[%emt 00:00:53] [%clk
00:06:02]} 18. Nxd6+ {[%emt 00:00:57] [%clk 00:07:22]} Qxd6 {[%clk 00:06:11]}
19. Nf5 {[%emt 00:00:23] [%clk 00:07:09]} Qc7 {[%emt 00:00:05] [%clk 00:06:16]}
20. Nxh6 {[%emt 00:02:08] [%clk 00:05:10]} Rg7 {[%emt 00:03:19] [%clk 00:03:09]}
21. Nf5 {[%emt 00:00:21] [%clk 00:04:58]} Rg6 {[%emt 00:00:05] [%clk 00:03:14]}
22. Qf3 {[%emt 00:00:49] [%clk 00:04:18]} Kb8 {[%emt 00:00:28] [%clk 00:02:57]}
23. g3 {[%emt 00:00:20] [%clk 00:04:08]} Qb6 {[%emt 00:00:12] [%clk 00:02:56]}
24. Qf2 {[%emt 00:00:07] [%clk 00:04:10]} Rh8 {[%emt 00:00:22] [%clk 00:02:45]}
25. Kh1 {[%emt 00:00:34] [%clk 00:03:45]} Rh5 {[%emt 00:01:25] [%clk 00:01:30]}
26. Nh4 {[%emt 00:00:20] [%clk 00:03:34]} Rgh6 {[%emt 00:00:10] [%clk 00:01:31]}
27. Rae1 {[%emt 00:00:17] [%clk 00:03:26]} a6 {[%emt 00:00:09] [%clk 00:01:33]}
28. Nf3 {[%emt 00:00:47] [%clk 00:02:48]} Nxd4 {[%emt 00:00:52] [%clk 00:00:52]}
29. h4 {[%emt 00:00:19] [%clk 00:02:38]} c5 {[%emt 00:00:11]} 30. Nxd4 {[%emt
00:00:08] [%clk 00:02:39]} cxd4 {[%emt 00:00:02] [%clk 00:01:02]} 31. Re8+
{[%emt 00:00:11] [%clk 00:02:37]} Ka7 {[%emt 00:00:02] [%clk 00:01:10]} 32. b4
{[%emt 00:00:34] [%clk 00:02:13]} f5 {[%emt 00:00:34] [%clk 00:00:46]} 33. Rc1
{[%emt 00:00:17] [%clk 00:02:05]} Re6 {[%emt 00:00:25] [%clk 00:00:32]} 34. Rxe6
{[%emt 00:00:12] [%clk 00:02:04]} fxe6 {[%emt 00:00:05] [%clk 00:00:36]} 35. Rc5
{[%emt 00:00:04] [%clk 00:02:10]} Rh7 {[%emt 00:00:29] [%clk 00:00:17]} 36. Qxd4
{[%emt 00:00:08] [%clk 00:02:12]} Rc7 {[%emt 00:00:06] [%clk 00:00:21]} 37. a4
{[%emt 00:00:10] [%clk 00:02:11]} Kb8 {[%emt 00:00:20] [%clk 00:00:13]} 38. Qe5
{[%emt 00:00:11] [%clk 00:02:09]} Kc8 {[%emt 00:00:03] [%clk 00:00:22]} 39.
Rxc7+ {[%emt 00:00:23] [%clk 00:01:55]} Qxc7 {[%emt 00:00:01] [%clk 00:00:31]}
40. Qxe6+ {[%emt 00:00:04] [%clk 00:02:00]} Kb8 {[%emt 00:00:21] [%clk
00:00:21]} 41. Qe5 {[%emt 00:00:02] [%clk 00:02:08]} 1-0

[Site "Europe Echecs"]

[Event "Championnat d'Europe Rapide"]
[Date "2024.12.07"]
[White "Saraci, Nderim"]
[Black "Malicka, Maria"]
[WhiteElo "2431"]
[BlackElo "2206"]
[Round "6.52"]
[Result "1/2-1/2"]
[TimeControl "900+10"]

1. d4 {[%emt 00:00:02] [%clk 00:15:18]} Nf6 {[%emt 00:00:02] [%clk 00:15:19]} 2.
Nf3 {[%emt 00:00:02] [%clk 00:15:25]} e6 {[%emt 00:00:04] [%clk 00:15:26]} 3.
Bf4 {[%emt 00:00:05] [%clk 00:15:29]} b6 {[%emt 00:00:10] [%clk 00:15:28]} 4. e3
{[%emt 00:00:05] [%clk 00:15:33]} Bb7 {[%emt 00:00:01] [%clk 00:15:37]} 5. h3
{[%emt 00:00:02] [%clk 00:15:41]} c5 {[%emt 00:00:07] [%clk 00:15:40]} 6. a4
{[%emt 00:00:08] [%clk 00:15:43]} a6 {[%emt 00:00:14] [%clk 00:15:36]} 7. Be2
{[%emt 00:00:08] [%clk 00:15:44]} d5 {[%emt 00:00:14] [%clk 00:15:32]} 8. c3
{[%emt 00:00:41] [%clk 00:15:14]} Bd6 {[%emt 00:00:06] [%clk 00:15:36]} 9. Ne5
{[%emt 00:00:25] [%clk 00:14:59]} Nc6 {[%emt 00:00:40] [%clk 00:15:05]} 10. Nd2
{[%emt 00:01:53] [%clk 00:13:16]} Qc7 {[%emt 00:00:18] [%clk 00:14:58]} 11. Ndf3
{[%emt 00:00:03] [%clk 00:13:21]} Nd7 {[%emt 00:00:22] [%clk 00:14:48]} 12. Nxd7
{[%emt 00:00:50] [%clk 00:12:41]} Qxd7 {[%emt 00:00:08] [%clk 00:14:49]} 13. O-O
{[%emt 00:00:21] [%clk 00:12:30]} O-O {[%emt 00:00:13] [%clk 00:14:47]} 14. Bd3
{[%emt 00:01:03] [%clk 00:11:36]} Qc7 {[%emt 00:00:56] [%clk 00:14:01]} 15. Bxd6
{[%emt 00:02:02] [%clk 00:09:45]} Qxd6 {[%emt 00:00:03] [%clk 00:14:08]} 16. Re1
{[%emt 00:00:02] [%clk 00:09:52]} e5 {[%emt 00:02:19] [%clk 00:11:59]} 17. dxe5
{[%emt 00:01:26] [%clk 00:08:36]} Nxe5 {[%emt 00:00:02] [%clk 00:12:08]} 18.
Nxe5 {[%emt 00:00:25] [%clk 00:08:21]} Qxe5 {[%emt 00:00:02] [%clk 00:12:16]}
19. Be2 {[%emt 00:00:17] [%clk 00:08:13]} Rad8 {[%emt 00:00:44] [%clk 00:11:43]}
20. Bf3 {[%emt 00:00:02] [%clk 00:08:20]} Qc7 {[%emt 00:00:58] [%clk 00:10:56]}
21. a5 {[%emt 00:00:23] [%clk 00:08:07]} d4 {[%emt 00:02:24] [%clk 00:08:42]}
22. Bxb7 {[%emt 00:01:01] [%clk 00:07:16]} Qxb7 {[%emt 00:00:31] [%clk
00:08:21]} 23. cxd4 {[%emt 00:00:16] [%clk 00:07:10]} cxd4 {[%emt 00:00:04]
[%clk 00:08:27]} 24. exd4 {[%emt 00:00:11] [%clk 00:07:09]} bxa5 {[%emt
00:00:04] [%clk 00:08:32]} 25. Qd2 {[%emt 00:00:19] [%clk 00:07:00]} Qb4 {[%emt
00:00:56] [%clk 00:07:46]} 26. Red1 {[%emt 00:00:08] [%clk 00:07:01]} Qxd2
{[%emt 00:00:40] [%clk 00:07:18]} 27. Rxd2 {[%emt 00:00:03] [%clk 00:07:08]} Rd5
{[%clk 00:07:27]} 28. Ra4 {[%emt 00:00:18] [%clk 00:06:59]} Rb8 {[%emt 00:00:29]
[%clk 00:07:09]} 29. Rc4 {[%emt 00:00:11] [%clk 00:06:57]} Kf8 {[%emt 00:01:31]
[%clk 00:05:48]} 30. Kf1 {[%emt 00:00:05] [%clk 00:07:02]} Rb4 {[%emt 00:01:03]
[%clk 00:04:56]} 31. Rc8+ {[%emt 00:00:27] [%clk 00:06:45]} Ke7 {[%clk
00:05:04]} 32. Re2+ {[%emt 00:00:04] [%clk 00:06:51]} Kd7 {[%emt 00:00:38] [%clk
00:04:36]} 33. Rf8 {[%emt 00:00:36] [%clk 00:06:25]} Rf5 {[%emt 00:00:17] [%clk
00:04:29]} 34. g4 {[%emt 00:02:39] [%clk 00:03:56]} Rf4 {[%emt 00:00:35] [%clk
00:04:06]} 35. d5 {[%emt 00:01:41] [%clk 00:02:24]} Rbd4 {[%emt 00:00:13] [%clk
00:04:03]} 36. Ra8 {[%emt 00:00:37] [%clk 00:01:57]} Rxd5 {[%emt 00:00:28] [%clk
00:03:44]} 37. Rxa6 {[%emt 00:00:06] [%clk 00:02:01]} h5 {[%emt 00:02:04] [%clk
00:01:51]} 38. Kg2 {[%emt 00:00:55] [%clk 00:01:16]} hxg4 {[%emt 00:00:33] [%clk
00:01:28]} 39. Kg3 {[%emt 00:00:06] [%clk 00:01:19]} Rf3+ {[%emt 00:00:33] [%clk
00:01:06]} 40. Kxg4 {[%emt 00:00:04] [%clk 00:01:25]} Rdf5 {[%emt 00:00:58]
[%clk 00:00:18]} 41. h4 {[%emt 00:00:50] [%clk 00:00:45]} R5f4+ {[%emt 00:00:05]
[%clk 00:00:23]} 42. Kg5 {[%emt 00:00:01] [%clk 00:00:53]} Rf5+ {[%emt 00:00:17]
[%clk 00:00:18]} 43. Kg4 {[%clk 00:01:02]} R5f4+ {[%emt 00:00:02] [%clk
00:00:26]} 44. Kg5 {[%clk 00:01:11]} 1/2-1/2

[Site "Europe Echecs"]